bitfinex/quotes_SOLUSD_20250301
["timestamp","ask_amount","ask_price","bid_price","bid_amount"]
[1740870429777,5.6128,142.53,142.47,33.52445912]
[1740870430371,5.6128,142.53,142.47,27.90935912]
[1740870430752,5.6128,142.53,142.47,33.52445912]
[1740870431352,5.6128,142.53,142.47,27.90935912]
[1740870431560,5.6128,142.53,142.47,7.22]
[1740870432552,18.64964886,142.52,142.47,7.22]
[1740870433975,18.64964886,142.5,142.45,82.3]
[1740870434284,18.64964886,142.5,142.42,83.9474]
[1740870434475,18.64964886,142.48,142.42,1.6474]
[1740870436476,18.64964886,142.46,142.42,1.6474]
[1740870438455,18.64964886,142.46,142.4,82.3]
[1740870439681,18.64964886,142.47,142.4,82.3]
[1740870439869,14.04,142.45,142.4,82.3]
[1740870440281,18.64964886,142.44,142.4,82.3]
[1740870441360,5.6167,142.43,142.4,82.3]
[1740870441560,5.6167,142.43,142.39,91.1542]
[1740870442071,5.6167,142.43,142.39,83.9542]
[1740870445282,5.6175,142.41,142.37,82.3]
[1740870445498,5.6175,142.41,142.37,110.10935912]
[1740870446688,5.6175,142.41,142.37,89.42]
[1740870447390,5.6167,142.43,142.37,89.42]
[1740870447762,18.64964886,142.42,142.37,82.3]
[1740870448088,20.0,142.37,142.35,82.3]
[1740870448282,20.0,142.37,142.3,202.68505912]
[1740870448478,20.0,142.37,142.3,111.98505912]
[1740870448685,38.64964886,142.36,142.3,91.2957]
[1740870449075,38.64964886,142.36,142.31,20.68935912]
[1740870449392,44.26934886,142.36,142.31,20.68935912]
[1740870449589,44.26934886,142.36,142.3,111.98505912]
[1740870449788,44.26934886,142.36,142.3,83.9957]
[1740870450173,44.26934886,142.36,142.29,89.84]
[1740870450488,64.39084886,142.36,142.27,83.9957]
[1740870450709,18.64964886,142.34,142.27,82.3]
[1740870451392,18.64964886,142.3,142.24,89.88]
[1740870451790,88.621,142.33,142.24,116.19325912]
[1740870451986,88.621,142.33,142.25,20.68935912]
[1740870452394,88.621,142.33,142.24,110.56935912]
[1740870452572,18.64964886,142.32,142.25,20.68935912]
[1740870452773,18.64964886,142.32,142.26,20.68935912]
[1740870453599,88.6202,142.35,142.27,20.68935912]
[1740870453778,5.6202,142.35,142.28,20.68935912]
[1740870453978,18.64964886,142.35,142.28,20.68935912]
[1740870454493,18.64964886,142.35,142.28,102.98935912]
[1740870455388,18.64964886,142.35,142.28,108.61175912]
[1740870456405,18.64964886,142.35,142.29,20.68935912]
[1740870456699,18.64964886,142.35,142.3,7.68]
[1740870456906,6.0727,142.36,142.3,110.66935912]
[1740870457307,6.0727,142.36,142.3,116.29115912]
[1740870457986,11.6923,142.36,142.3,110.66935912]
[1740870458188,6.0727,142.36,142.3,110.66935912]
[1740870458395,11.6923,142.36,142.3,110.66935912]
[1740870459092,11.6923,142.36,142.3,89.98]
[1740870460706,6.0727,142.36,142.31,20.68935912]
[1740870461007,24.26894886,142.37,142.31,20.68935912]
[1740870461391,24.26894886,142.37,142.3,116.29115912]
[1740870461987,24.26894886,142.37,142.3,116.29105912]
[1740870462190,24.26894886,142.37,142.3,110.66935912]
[1740870462521,24.26894886,142.37,142.3,89.98]
[1740870464917,24.26894886,142.37,142.3,110.66935912]
[1740870465213,5.6193,142.37,142.32,20.68935912]
[1740870466311,18.64964886,142.39,142.32,20.68935912]
[1740870466504,24.26794886,142.39,142.32,102.98935912]
[1740870467018,24.26794886,142.39,142.32,108.61035912]
[1740870470112,5.6179,142.4,142.32,199.31035912]
[1740870470324,5.6171,142.42,142.35,20.68935912]
[1740870470497,11.9529,142.43,142.36,7.62]
[1740870470698,18.64964886,142.42,142.36,7.62]
[1740870471918,24.26704886,142.42,142.36,7.62]
[1740870472121,24.26704886,142.42,142.36,13.2394]
[1740870472920,24.26704886,142.42,142.36,7.62]
[1740870474817,24.26704886,142.42,142.36,89.92]
[1740870477912,38.30994886,142.42,142.36,89.92]
[1740870480727,3.58332778,142.41,142.36,89.92]
[1740870482126,38.31244886,142.4,142.36,7.62]
[1740870482513,38.31244886,142.4,142.34,82.3]
[1740870483448,1.7908,142.39,142.34,82.3]
[1740870484238,19.6656,142.38,142.34,82.3]
[1740870484916,3.5345963,142.36,142.34,82.3]
[1740870485115,3.5345963,142.36,142.32,89.9]
[1740870485737,3.5345963,142.36,142.32,82.3]
[1740870486529,19.6697,142.35,142.32,82.3]
[1740870487329,18.64964886,142.34,142.31,0.03]
[1740870487945,20.0,142.32,142.31,0.03]
[1740870488631,25.6211,142.32,142.31,0.03]
[1740870489451,44.27074886,142.32,142.31,0.03]
[1740870491346,47.79373154,142.32,142.31,0.03]
[1740870497147,3.52298268,142.32,142.31,0.03]
[1740870497770,24.26954886,142.35,142.31,0.03]
[1740870498255,3.5345963,142.36,142.31,13.33522731]
[1740870498465,3.5345963,142.36,142.31,20.81522731]
[1740870498966,3.5345963,142.36,142.31,26.43642731]
[1740870499367,3.5345963,142.36,142.31,13.1312]
[1740870499866,5.6187,142.39,142.32,13.30522731]
[1740870500047,5.6187,142.39,142.33,13.30522731]
[1740870500443,5.6187,142.39,142.32,95.60522731]
[1740870501055,5.6187,142.39,142.33,13.30522731]
[1740870501456,9.19396898,142.39,142.33,13.30522731]
[1740870501845,5.6171,142.42,142.34,15.10602731]
[1740870502050,18.64964886,142.41,142.35,13.30522731]
[1740870502252,18.64964886,142.41,142.34,188.10602731]
[1740870503445,5.6179,142.4,142.34,174.8008]
[1740870505665,18.64964886,142.39,142.34,174.8008]
[1740870505963,18.64964886,142.39,142.34,84.1008]
[1740870507650,20.0,142.37,142.34,84.1008]
[1740870507851,14.0459,142.39,142.34,84.1008]
[1740870508452,14.0459,142.39,142.34,82.3]
[1740870510375,14.1089,142.39,142.34,82.3]
[1740870511953,32.75854886,142.39,142.34,82.3]
[1740870513483,38.37684886,142.39,142.34,82.3]
[1740870518266,18.64964886,142.38,142.34,82.3]
[1740870519474,52.69754886,142.37,142.34,82.3]
[1740870521560,58.31664886,142.37,142.34,82.3]
[1740870521758,58.31664886,142.37,142.32,90.7]
[1740870521759,58.31664886,142.37,142.32,82.3]
[1740870522778,92.69264886,142.37,142.31,0.03]
[1740870522981,175.69264886,142.37,142.34,0.03]
[1740870524169,175.69264886,142.37,142.31,0.03]
[1740870524358,175.69264886,142.37,142.31,0.0001]
[1740870524359,20.0,142.32,142.31,0.0001]
[1740870524560,38.64964886,142.32,142.31,0.0001]
[1740870524974,44.27074886,142.32,142.31,0.0001]
[1740870525280,5.6211,142.32,142.31,0.0001]
[1740870526265,5.6187,142.38,142.31,195.45862731]
[1740870526595,5.6815,142.39,142.33,13.30522731]
[1740870526768,0.063,142.39,142.34,18.92512731]
[1740870526957,0.063,142.39,142.36,13.30522731]
[1740870527254,0.063,142.39,142.36,20.62522731]
[1740870527457,0.063,142.39,142.36,7.32]
[1740870529983,0.063,142.39,142.37,1.6889]
[1740870530281,0.063,142.39,142.37,83.9889]
[1740870531077,0.063,142.39,142.37,82.3]
[1740870533076,18.64964886,142.38,142.37,82.3]
[1740870534079,5.6813,142.39,142.34,7.36]
[1740870534284,5.6813,142.39,142.34,89.66]
[1740870535090,5.6187,142.38,142.34,89.66]
[1740870537187,0.063,142.39,142.34,89.66]
[1740870537390,5.6813,142.39,142.34,89.66]
[1740870539792,0.063,142.39,142.34,89.66]
[1740870540195,0.063,142.39,142.34,102.96522731]
[1740870540489,0.063,142.39,142.34,108.58552731]
[1740870540678,0.063,142.39,142.34,89.66]
[1740870541692,0.063,142.39,142.34,102.96522731]
[1740870542088,0.063,142.39,142.34,108.58542731]
[1740870542393,0.063,142.39,142.34,89.66]
[1740870542899,0.063,142.39,142.33,8.9889]
[1740870545388,18.71264886,142.39,142.33,8.9889]
[1740870545612,24.75524886,142.39,142.33,7.3]
[1740870545792,24.75524886,142.39,142.32,173.0]
[1740870546091,18.64964886,142.37,142.32,82.3]
[1740870546408,5.6187,142.38,142.32,101.22622731]
[1740870546693,5.6187,142.38,142.32,87.921]
[1740870548700,5.6187,142.38,142.32,101.22622731]
[1740870551106,5.6187,142.38,142.32,82.3]
[1740870554786,18.64964886,142.37,142.32,82.3]
[1740870555306,18.64964886,142.35,142.31,0.0001]
[1740870557403,9.19692946,142.34,142.31,0.0001]
[1740870560114,18.64964886,142.33,142.31,0.0001]
[1740870561707,20.0,142.29,142.23,1.7874]
[1740870562012,18.64964886,142.29,142.23,82.3]
[1740870562892,18.64964886,142.26,142.2,89.48]
[1740870563107,24.23102246,142.26,142.2,89.48]
[1740870563683,18.64964886,142.24,142.18,82.3]
[1740870563884,18.64964886,142.24,142.18,52.3]
[1740870564613,6.6536,142.23,142.16,59.53]
[1740870564818,18.64964886,142.18,142.16,0.03]
[1740870564990,101.64964886,142.17,142.16,0.03]
[1740870565304,22.0,142.13,142.05,3.44227936]
[1740870565636,25.6314,142.06,142.03,11.02248436]
[1740870566206,5.6308,142.08,142.03,11.02248436]
[1740870566398,20.0,142.08,142.03,11.02248436]
[1740870566587,118.46,142.12,142.04,28.16338181]
[1740870566907,132.9809602,142.12,142.06,20.90338181]
[1740870567314,132.9809602,142.12,142.04,71.26]
[1740870567505,132.9809602,142.12,142.07,20.90338181]
[1740870567809,43.58274702,142.1,142.08,20.90338181]
[1740870568002,43.58274702,142.1,142.09,7.26]
[1740870568199,43.58274702,142.1,142.09,28.16338181]
[1740870568592,10.87953229,142.1,142.09,28.16338181]
[1740870568995,1.83661819,142.09,142.08,20.0]
[1740870569202,0.00881819,142.09,142.08,112.16338181]
[1740870569513,10.87953229,142.1,142.08,112.16338181]
[1740870569718,10.87953229,142.1,142.09,26.53358181]
[1740870569922,9.05173229,142.1,142.09,109.18323067]
[1740870570212,1.81966428,142.11,142.09,144.31086899]
[1740870570417,1.81966428,142.11,142.1,20.90338181]
[1740870570921,2.0,142.17,142.1,20.90338181]
[1740870571101,2.0,142.17,142.11,20.90338181]
[1740870571418,2.0,142.16,142.11,20.90338181]
[1740870571597,2.0,142.17,142.12,5.629]
[1740870571911,4.0,142.18,142.12,5.629]
[1740870572102,2.0,142.17,142.12,38.9991819]
[1740870572300,2.0,142.16,142.12,5.629]
[1740870572498,4.0,142.16,142.11,33.3701819]
[1740870572718,4.0,142.16,142.1,155.2995819]
[1740870573011,2.0,142.16,142.1,155.2995819]
[1740870573222,2.0,142.17,142.11,33.3701819]
[1740870573398,2.0,142.18,142.12,33.3701819]
[1740870573600,2.0,142.18,142.13,5.6286]
[1740870573792,4.0,142.18,142.13,5.6286]
[1740870573996,2.0,142.18,142.13,5.6286]
[1740870574319,4.0,142.18,142.13,38.9987819]
[1740870574520,4.0,142.18,142.13,5.6286]
[1740870574721,2.0,142.17,142.13,5.6286]
[1740870575213,4.0,142.18,142.13,5.6286]
[1740870575717,2.0,142.18,142.13,5.6286]
[1740870575918,2.0,142.19,142.13,162.5587819]
[1740870576106,4.0,142.2,142.14,33.3701819]
[1740870577219,4.0,142.2,142.15,5.6278]
[1740870580706,2.0,142.19,142.15,5.6278]
[1740870580906,4.0,142.2,142.15,5.6278]
[1740870581122,4.0,142.2,142.15,57.9278]
[1740870582825,2.0,142.18,142.15,57.9278]
[1740870583027,2.0,142.19,142.15,57.9278]
[1740870583210,4.0,142.2,142.15,57.9278]
[1740870585632,2.0,142.23,142.17,33.3701819]
[1740870585831,2.0,142.23,142.17,116.3]
[1740870586629,4.0,142.23,142.17,116.3]
[1740870586833,4.0,142.23,142.18,5.6266]
[1740870587032,2.0,142.23,142.18,5.6266]
[1740870587218,2.0,142.24,142.18,5.6266]
[1740870587419,2.0,142.24,142.18,129.1266]
[1740870587616,2.0,142.23,142.18,129.1266]
[1740870587818,2.0,142.24,142.18,129.1266]
[1740870587819,4.0,142.24,142.18,129.1266]
[1740870590451,4.0,142.23,142.18,129.1266]
[1740870590616,4.0,142.23,142.18,65.1266]
[1740870590811,2.0,142.22,142.18,65.1266]
[1740870591024,4.0,142.23,142.18,65.1266]
[1740870591227,9.6244,142.24,142.18,65.1266]
[1740870591429,2.0,142.23,142.18,65.1266]
[1740870592013,9.6244,142.24,142.18,65.1266]
[1740870592213,2.0,142.23,142.18,65.1266]
[1740870592617,4.0,142.25,142.18,98.4967819]
[1740870592828,4.0,142.25,142.18,162.4967819]
[1740870593037,2.0,142.25,142.18,162.4967819]
[1740870593344,4.0,142.25,142.18,162.4967819]
[1740870593641,2.0,142.24,142.18,149.96473191]
[1740870593829,2.0,142.23,142.18,129.1266]
[1740870594026,2.0,142.22,142.18,129.1266]
[1740870597048,4.0,142.23,142.18,129.1266]
[1740870597534,2.0,142.23,142.18,129.1266]
[1740870597839,4.0,142.23,142.18,104.62207454]
[1740870598634,9.6247,142.23,142.18,104.62207454]
[1740870599139,4.0,142.23,142.18,104.62207454]
[1740870599435,4.0,142.23,142.18,110.24867454]
[1740870599645,4.0,142.23,142.18,46.24867454]
[1740870600234,2.0,142.23,142.18,46.24867454]
[1740870600536,0.063,142.24,142.18,67.08680645]
[1740870600726,2.063,142.24,142.18,67.08680645]
[1740870601034,0.063,142.24,142.18,67.08680645]
[1740870601222,2.063,142.24,142.18,67.08680645]
[1740870601428,0.063,142.24,142.18,67.08680645]
[1740870601843,4.063,142.24,142.18,67.08680645]
[1740870602041,2.063,142.24,142.18,67.08680645]
[1740870602442,0.063,142.24,142.18,67.08680645]
[1740870602944,0.063,142.24,142.2,20.83813191]
[1740870603526,0.063,142.24,142.21,20.83813191]
[1740870603733,0.063,142.24,142.21,101.46020645]
[1740870604622,0.063,142.24,142.22,20.83813191]
[1740870604825,0.063,142.24,142.23,12.7046]
[1740870605821,0.063,142.24,142.23,7.08]
[1740870608239,2.0,142.23,142.21,33.42207454]
[1740870610154,7.6875,142.24,142.21,39.04737454]
[1740870610155,0.063,142.24,142.21,39.04737454]
[1740870610849,0.063,142.24,142.22,20.83813191]
[1740870611525,0.063,142.24,142.23,5.6246]
[1740870611735,0.063,142.24,142.23,86.24667454]
[1740870611936,0.063,142.24,142.23,80.62207454]
[1740870612640,2.0,142.22,142.19,1.47613804]
[1740870612841,4.0,142.22,142.18,0.03]
[1740870613429,2.0,142.21,142.18,0.03]
[1740870613828,9.6254,142.22,142.18,0.03]
[1740870614033,4.0,142.23,142.18,0.03]
[1740870614233,9.6248,142.23,142.18,0.03]
[1740870615044,9.6874,142.24,142.18,80.65207454]
[1740870615245,0.063,142.24,142.18,101.49020645]
[1740870615546,0.063,142.24,142.2,20.83813191]
[1740870617352,0.063,142.24,142.2,26.46373191]
[1740870617746,0.063,142.24,142.2,107.08580645]
[1740870618053,0.063,142.24,142.21,20.83813191]
[1740870618231,0.063,142.24,142.22,20.83813191]
[1740870618836,0.063,142.24,142.22,27.85813191]
[1740870619441,0.063,142.24,142.22,33.48303191]
[1740870619645,0.063,142.24,142.22,12.6449]
[1740870620155,0.063,142.24,142.22,7.02]
[1740870620744,0.063,142.24,142.19,7.0]
[1740870620946,4.063,142.24,142.19,7.0]
[1740870621755,9.6874,142.24,142.19,7.0]
[1740870621958,7.6874,142.24,142.19,7.0]
[1740870622354,7.6874,142.24,142.19,27.83813191]
[1740870622560,7.6874,142.24,142.19,33.46433191]
[1740870622854,5.6874,142.24,142.19,33.46433191]
[1740870623158,0.063,142.24,142.19,33.46433191]
[1740870623547,2.063,142.24,142.19,33.46433191]
[1740870624057,0.063,142.24,142.19,33.46433191]
[1740870624268,0.063,142.24,142.2,20.83813191]
[1740870625744,0.063,142.24,142.21,5.6254]
[1740870626151,4.0,142.19,142.18,0.03]
[1740870626548,2.0,142.19,142.18,0.03]
[1740870626739,4.0,142.19,142.18,0.03]
[1740870627841,9.6262,142.19,142.18,0.03]
[1740870629564,28.27584886,142.19,142.18,0.03]
[1740870629941,18.64964886,142.18,142.11,33.45207454]
[1740870630147,2.0,142.14,142.11,33.45207454]
[1740870630561,2.0,142.15,142.11,33.45207454]
[1740870630864,4.0,142.08,142.03,33.45207454]
[1740870631064,4.0,142.07,142.03,33.45207454]
[1740870631569,2.0,142.06,142.03,33.45207454]
[1740870632968,4.0,142.07,142.03,33.45207454]
[1740870633269,2.0,142.06,142.03,33.45207454]
[1740870634070,4.0,141.98,141.97,1.47827333]
[1740870634250,4.0,141.98,141.95,11.00856429]
[1740870634251,4.0,141.96,141.95,11.00856429]
[1740870634754,2.0,141.97,141.95,11.00856429]
[1740870634967,2.0,141.98,141.95,11.00856429]
[1740870635166,2.0,142.01,141.96,33.41888095]
[1740870635366,2.0,142.03,141.98,33.41888095]
[1740870635568,6.9,142.08,141.99,33.41888095]
[1740870635569,12.5784,142.05,141.99,33.41888095]
[1740870635869,2.0,142.04,141.99,33.41888095]
[1740870636253,2.0,142.03,141.98,80.61888095]
[1740870636973,4.0,142.04,141.98,80.61888095]
[1740870637755,2.0,142.05,141.99,33.41888095]
[1740870638065,2.0,142.05,142.0,33.41888095]
[1740870638864,4.0,142.08,142.02,33.41888095]
[1740870639069,2.0,142.08,142.02,66.84095549]
[1740870639470,4.0,142.09,142.03,33.41888095]
[1740870639671,4.0,142.09,142.03,114.04095549]
[1740870640055,4.0,142.09,142.03,80.62207454]
[1740870641561,4.0,142.09,142.03,86.25457454]
[1740870641955,4.0,142.09,142.03,86.28457454]
[1740870642356,2.0,142.08,142.03,86.28457454]
[1740870642985,4.0,142.09,142.03,86.28457454]
[1740870643153,2.0,142.09,142.03,119.70345549]
[1740870643479,2.0,142.09,142.04,33.41888095]
[1740870643982,2.0,142.09,142.04,114.04095549]
[1740870645181,2.0,142.09,142.04,119.67295549]
[1740870645362,2.063,142.12,142.05,33.41888095]
[1740870645572,0.063,142.12,142.07,33.41888095]
[1740870647275,0.063,142.12,142.08,33.41888095]
[1740870647459,0.063,142.12,142.08,114.04095549]
[1740870647860,0.063,142.12,142.09,33.41888095]
[1740870648584,0.063,142.12,142.08,80.62207454]
[1740870648879,2.063,142.12,142.08,33.42207454]
[1740870649083,2.0,142.11,142.08,33.42207454]
[1740870649959,2.063,142.12,142.08,33.42207454]
[1740870650160,2.0,142.11,142.08,33.42207454]
[1740870650586,4.063,142.12,142.08,33.42207454]
[1740870651670,4.0,142.09,142.06,33.42207454]
[1740870651874,5.692,142.12,142.06,33.42207454]
[1740870651875,9.6307,142.08,142.06,33.42207454]
[1740870652080,2.0,142.07,142.06,33.42207454]
[1740870654072,2.0,142.08,142.06,33.42207454]
[1740870654286,9.6303,142.09,142.06,33.42207454]
[1740870654666,4.0,142.09,142.06,33.42207454]
[1740870655084,2.0,142.09,142.06,33.42207454]
[1740870655275,14.1356,142.12,142.06,33.42207454]
[1740870655276,2.0,142.11,142.06,86.25327454]
[1740870655478,0.063,142.12,142.06,86.25327454]
[1740870655700,0.063,142.12,142.06,119.67215549]
[1740870655863,0.063,142.12,142.07,6.82]
[1740870656069,2.063,142.12,142.07,6.82]
[1740870656388,0.063,142.12,142.07,6.82]
[1740870656592,2.063,142.12,142.07,6.82]
[1740870656773,9.6921,142.12,142.07,6.82]
[1740870657075,2.0,142.11,142.07,6.82]
[1740870657273,0.063,142.12,142.07,6.82]
[1740870657475,2.063,142.12,142.07,6.82]
[1740870657897,0.063,142.12,142.07,6.82]
[1740870658082,0.063,142.12,142.07,12.4509]
[1740870658481,9.692,142.12,142.07,6.82]
[1740870658792,4.0,142.1,142.07,6.82]
[1740870658974,2.0,142.09,142.07,40.24207454]
[1740870660176,4.0,142.08,142.07,33.42207454]
[1740870661097,9.6306,142.08,142.07,33.42207454]
[1740870661293,2.0,142.1,142.07,33.42207454]
[1740870661492,2.0,142.08,142.07,33.42207454]
[1740870662099,9.6299,142.1,142.07,33.42207454]
[1740870663388,2.0,142.1,142.07,33.42207454]
[1740870663700,5.6921,142.12,142.07,45.83287454]
[1740870663878,0.063,142.12,142.07,93.03287454]
[1740870664278,0.063,142.12,142.07,126.45175549]
[1740870665099,0.063,142.12,142.08,33.41888095]
[1740870665596,0.063,142.12,142.08,20.86463927]
[1740870666299,0.063,142.1,142.08,20.86463927]
[1740870666678,0.063,142.1,142.07,115.37486457]
[1740870666879,0.063,142.1,142.07,93.03287454]
[1740870667498,0.063,142.1,142.07,87.40207454]
[1740870667682,0.063,142.1,142.07,80.62207454]
[1740870668480,0.063,142.1,142.07,86.25287454]
[1740870668687,0.063,142.1,142.07,119.65143659]
[1740870669484,0.063,142.1,142.07,80.62207454]
[1740870669878,0.063,142.1,142.07,86.25297454]
[1740870670384,0.063,142.1,142.07,119.65153659]
[1740870670587,0.063,142.1,142.07,121.12893166]
[1740870671597,0.063,142.1,142.08,33.39856205]
[1740870673227,0.063,142.1,142.09,5.6302]
[1740870676913,0.063,142.1,142.09,86.25227454]
[1740870680992,0.063,142.1,142.09,119.65083659]
[1740870681720,0.063,142.1,142.09,86.25227454]
[1740870681919,0.063,142.1,142.09,33.42207454]
[1740870683113,0.063,142.1,142.09,39.05227454]
[1740870683808,0.063,142.1,142.09,121.1280514]
[1740870684009,0.063,142.1,142.09,139.77770026]
[1740870685228,2.0,142.17,142.09,139.77770026]
[1740870685400,4.0,142.19,142.12,33.39856205]
[1740870685605,2.0,142.18,142.12,120.70063659]
[1740870685926,2.0,142.18,142.13,33.39856205]
[1740870686121,2.0,142.19,142.13,33.39856205]
[1740870687422,2.0,142.19,142.14,5.6282]
[1740870688927,2.0,142.19,142.13,53.09876205]
[1740870689223,2.0,142.19,142.13,133.72083659]
[1740870689723,2.0,142.19,142.13,121.17307036]
[1740870691326,2.063,142.19,142.13,121.17307036]
[1740870692229,2.063,142.19,142.14,20.85079582]
[1740870692422,2.063,142.19,142.13,121.17307036]
[1740870693428,2.063,142.19,142.13,142.36307036]
[1740870693925,2.063,142.19,142.13,121.17307036]
[1740870694230,2.0,142.16,142.13,86.25067454]
[1740870695624,2.0,142.17,142.13,86.25067454]
[1740870695926,2.0,142.14,142.13,33.42207454]
[1740870699525,7.6282,142.14,142.13,33.42207454]
[1740870700750,9.6282,142.14,142.13,33.42207454]
[1740870701326,4.0,142.14,142.13,33.42207454]
[1740870702023,4.0,142.14,142.09,39.05217454]
[1740870702226,2.0,142.12,142.09,86.25217454]
[1740870702429,2.0,142.12,142.09,80.62207454]
[1740870704133,2.0,142.12,142.09,86.25217454]
[1740870707433,2.0,142.14,142.09,86.25217454]
[1740870707735,14.0686,142.17,142.1,20.85079582]
[1740870707736,2.0,142.16,142.1,20.85079582]
[1740870708431,4.0,142.16,142.1,20.85079582]
[1740870708734,2.0,142.14,142.09,107.10297036]
[1740870708931,2.0,142.16,142.1,20.85079582]
[1740870709112,2.0,142.17,142.11,20.85079582]
[1740870709312,2.0,142.17,142.11,101.47287036]
[1740870709627,2.0,142.17,142.12,5.629]
[1740870710131,2.0,142.15,142.12,5.629]
[1740870710319,2.0,142.18,142.12,5.629]
[1740870711930,2.0,142.18,142.12,99.59772075]
[1740870712136,2.063,142.19,142.13,13.34664621]
[1740870712339,2.063,142.19,142.14,13.34664621]
[1740870712520,2.063,142.19,142.14,93.96872075]
[1740870712839,2.063,142.19,142.15,13.34664621]
[1740870713822,2.063,142.19,142.16,5.6274]
[1740870714836,2.063,142.19,142.16,86.24947454]
[1740870717354,0.063,142.19,142.16,86.24947454]
[1740870717638,0.063,142.19,142.16,99.59612075]
[1740870718816,0.063,142.19,142.16,113.66472075]
[1740870719016,0.063,142.19,142.18,13.34664621]
[1740870719214,0.063,142.19,142.18,100.54872075]
[1740870720414,0.063,142.19,142.18,106.17532075]
[1740870722528,0.063,142.19,142.18,87.20207454]
[1740870724352,2.063,142.19,142.18,40.00207454]
[1740870724551,2.063,142.19,142.18,33.42207454]
[1740870725343,2.0,142.16,142.14,80.62207454]
[1740870725533,4.0,142.16,142.14,33.42207454]
[1740870725844,5.6278,142.15,142.14,33.42207454]
[1740870726036,7.6278,142.15,142.14,33.42207454]
[1740870728220,7.6278,142.15,142.11,47.2]
[1740870728221,7.6278,142.15,142.11,80.62207454]
[1740870728425,4.0,142.14,142.13,0.03]
[1740870729749,2.0,142.14,142.13,0.03]
[1740870730128,2.0,142.15,142.13,0.03]
[1740870730548,2.0,142.14,142.13,0.03]
[1740870730762,4.0,142.15,142.13,0.03]
[1740870730936,2.0,142.15,142.13,0.03]
[1740870731139,2.0,142.16,142.13,0.03]
[1740870731140,4.0,142.17,142.13,0.03]
[1740870731455,2.0,142.17,142.13,0.03]
[1740870732334,4.0,142.17,142.13,0.03]
[1740870732751,2.0,142.17,142.13,0.03]
[1740870733156,4.0,142.17,142.13,0.03]
[1740870733359,2.0,142.16,142.13,33.45207454]
[1740870733655,2.0,142.15,142.13,33.45207454]
[1740870734261,9.6271,142.17,142.13,33.45207454]
[1740870734557,2.0,142.15,142.13,33.45207454]
[1740870734760,25.71212054,142.4,142.36,2.0]
[1740870735052,53.06866758,142.44,142.43,72.41973348]
[1740870735252,0.063,142.5,142.45,2.0]
[1740870735550,44.80926159,142.49,142.48,20.86345702]
[1740870735858,44.80926159,142.49,142.45,102.72207454]
[1740870736030,44.80926159,142.49,142.45,90.16345702]
[1740870736455,44.80926159,142.49,142.47,20.86345702]
[1740870736957,44.80926159,142.49,142.47,26.47845702]
[1740870737154,44.80926159,142.49,142.48,20.86345702]
[1740870737454,44.80926159,142.49,142.48,90.16345702]
[1740870737651,44.80926159,142.49,142.48,102.48847273]
[1740870737860,0.063,142.5,142.48,223.34038225]
[1740870738063,0.063,142.5,142.49,33.18847273]
[1740870738749,0.063,142.5,142.49,112.06162897]
[1740870738955,0.063,142.61,142.49,84.23372589]
[1740870739133,0.063,142.61,142.53,33.18847273]
[1740870739647,18.71264886,142.61,142.53,33.18847273]
[1740870739953,14.2679766,142.58,142.53,14.40467619]
[1740870740355,54.02854447,142.62,142.53,14.40467619]
[1740870740734,54.02854447,142.62,142.54,14.40467619]
[1740870740936,5.12353163,142.62,142.54,14.40467619]
[1740870741348,5.12353163,142.62,142.48,100.83273333]
[1740870741349,8.63182996,142.62,142.55,33.61091111]